Workbook

Sheet Rekapitulácia stavby
A1: 2012 | D1: Hárok obsahuje: | K1: 1) Súhrnný list stavby | W1: 2) Rekapitulácia objektov | BA1: 2.0 | BB1: ZAMOK | BT1: False | BU1: False
C2: optimalizované pre tlač zostáv vo formáte A4 - na výšku | AR2: >> skryté stĺpce << | BS2: 0,001 | BT2: 20
BS3: 0,001 | BT3: 20
C4: SÚHRNNÝ LIST STAVBY | AS4: v --- nižšie sa nachádzajú doplnkové a pomocné údaje k zostavám --- v | BE4: Návod na vyplnenie | BS4: 0,001
D5: Kód: | K5: JablonovePozzbrojnic | BE5: Meniť je možné iba bunky so žltým podfarbením! 1) na prvom liste Rekapitulácie stavby vyplňte v zostave a) Súhrnný list - údaje o Zhotoviteľovi (prenesú sa do ostatných zostáv aj v iných listoch) b) Rekapitulácia objektov - potrebné Ostatné náklady 2) na vybraných listoch vyplňte v zostave a) Krycí list - údaje o Zhotoviteľovi, pokiaľ sa líšia od údajov o Zhotoviteľovi na Súhrnnom liste (údaje se prenesú do ostatných zostav v danom liste) b) Rekapitulácia rozpočtu - potrebné Ostatné náklady c) Celkové náklady za stavbu - ceny na položkách - množstvo, pokiaľ má žlté podfarbenie - a v prípade potreby poznámku (tá je v skrytom stĺpci) | BS5: 0,001
D6: Stavba: | K6: Požiarna zbrojnica Jablonové-prístavba | BS6: 0,001
D7: JKSO: | AK7: KS: | BS7: 0,001
D8: Miesto: | K8: Jablonové | AK8: Dátum: | AN8: 20.3.2018 | BS8: 0,001
BS9: 0,001
D10: Objednávateľ: | AK10: IČO: | BS10: 0,001
E11: Obec Jablonové | AK11: IČO DPH: | BS11: 0,001
BS12: 0,001
D13: Zhotoviteľ: | AK13: IČO: | AN13: Vyplň údaj | BS13: 0,001
E14: Vyplň údaj | AK14: IČO DPH: | AN14: Vyplň údaj | BS14: 0,001
BS15: False
D16: Projektant: | AK16: IČO: | BS16: False
AK17: IČO DPH: | BS17: True
BS18: 0,01
D19: Spracovateľ: | AK19: IČO: | BS19: 0,01
AK20: IČO DPH:
D22: Poznámka:
D26: Náklady z rozpočtov | AK26: =ROUND(AG87,2) -> 0
D27: Ostatné náklady zo súhrnného listu | AK27: =ROUND(AG90,2) -> 0
D29: Cena bez DPH | AK29: =ROUND(AK26+AK27,2) -> 0
D31: DPH | F31: základná | L31: 0.2 | T31: z | W31: =ROUND(AZ87+SUM(CD91:CD95),2) -> 0 | AK31: =ROUND(AV87+SUM(BY91:BY95),2) -> 0
F32: znížená | L32: 0.2 | T32: z | W32: =ROUND(BA87+SUM(CE91:CE95),2) -> 0 | AK32: =ROUND(AW87+SUM(BZ91:BZ95),2) -> 0
F33: zákl. prenesená | L33: 0.2 | T33: z | W33: =ROUND(BB87+SUM(CF91:CF95),2) -> 0 | AK33: 0
F34: zníž. prenesená | L34: 0.2 | T34: z | W34: =ROUND(BC87+SUM(CG91:CG95),2) -> 0 | AK34: 0
F35: nulová | L35: 0 | T35: z | W35: =ROUND(BD87+SUM(CH91:CH95),2) -> 0 | AK35: 0
D37: Cena s DPH | T37: v | X37: EUR | AK37: =SUM(AK29:AK35) -> 0
D49: Projektant | AC49: Spracovateľ
D58: Dátum a podpis: | R58: Pečiatka | AC58: Dátum a podpis: | AM58: Pečiatka
D60: Objednávateľ | AC60: Zhotoviteľ
D69: Dátum a podpis: | R69: Pečiatka | AC69: Dátum a podpis: | AM69: Pečiatka
C76: REKAPITULÁCIA OBJEKTOV STAVBY
C77: Kód: | L77: =K5 -> JablonovePozzbrojnic
C78: Stavba: | L78: =K6 -> Požiarna zbrojnica Jablonové-prístavba
C80: Miesto: | L80: =IF(K8="","",K8) -> Jablonové | AI80: Dátum: | AM80: =IF(AN8= "","",AN8) -> 20.3.2018
C82: Objednávateľ: | L82: =IF(E11= "","",E11) -> Obec Jablonové | AI82: Projektant: | AM82: =IF(E17="","",E17) ->  | AS82: Informatívne údaje z listov zákaziek
C83: Zhotoviteľ: | L83: =IF(E14= "Vyplň údaj","",E14) ->  | AI83: Spracovateľ: | AM83: =IF(E20="","",E20) -> 
C85: Kód | I85: Objekt | AG85: Cena bez DPH [EUR] | AN85: Cena s DPH [EUR] | AS85: z toho Ostat. náklady [EUR] | AT85: DPH [EUR] | AU85: Normohodiny [h] | AV85: DPH základná [EUR] | AW85: DPH znížená [EUR] | AX85: DPH základná prenesená [EUR] | AY85: DPH znížená prenesená [EUR] | AZ85: Základňa DPH základná | BA85: Základňa DPH znížená | BB85: Základňa DPH zákl. prenesená | BC85: Základňa DPH zníž. prenesená | BD85: Základňa DPH nulová
C87: 1) Náklady z rozpočtov | AG87: =ROUND(AG88,2) -> 0 | AN87: =SUM(AG87,AT87) -> 0 | AS87: =ROUND(AS88,2) -> 0 | AT87: =ROUND(SUM(AV87:AW87),2) -> 0 | AU87: =ROUND(AU88,5) -> 0 | AV87: =ROUND(AZ87*L31,2) -> 0 | AW87: =ROUND(BA87*L32,2) -> 0 | AX87: =ROUND(BB87*L31,2) -> 0 | AY87: =ROUND(BC87*L32,2) -> 0 | AZ87: =ROUND(AZ88,2) -> 0 | BA87: =ROUND(BA88,2) -> 0 | BB87: =ROUND(BB88,2) -> 0 | BC87: =ROUND(BC88,2) -> 0 | BD87: =ROUND(BD88,2) -> 0 | BS87: D | BT87: 0 | BV87: IMPORT | BW87: {823123b4-ff03-47f7-a417-373a98dec387} | BX87: {00000000-0000-0000-0000-000000000000}
A88: / | D88: JablonovePozzbrojnic | J88: Požiarna zbrojnica Jablonové-prístavba | AG88: ='JablonovePozzbrojnic - Po...'!M29 -> 0 | AN88: =SUM(AG88,AT88) -> 0 | AS88: ='JablonovePozzbrojnic - Po...'!M27 -> 0 | AT88: =ROUND(SUM(AV88:AW88),2) -> 0 | AU88: ='JablonovePozzbrojnic - Po...'!W137 -> 0 | AV88: ='JablonovePozzbrojnic - Po...'!M31 -> 0 | AW88: ='JablonovePozzbrojnic - Po...'!M32 -> 0 | AX88: ='JablonovePozzbrojnic - Po...'!M33 -> 0 | AY88: ='JablonovePozzbrojnic - Po...'!M34 -> 0 | AZ88: ='JablonovePozzbrojnic - Po...'!H31 -> 0 | BA88: ='JablonovePozzbrojnic - Po...'!H32 -> 0 | BB88: ='JablonovePozzbrojnic - Po...'!H33 -> 0 | BC88: ='JablonovePozzbrojnic - Po...'!H34 -> 0 | BD88: ='JablonovePozzbrojnic - Po...'!H35 -> 0 | BT88: 1 | BU88: ###NOINSERT### | BV88: IMPORT | BW88: {823123b4-ff03-47f7-a417-373a98dec387} | BX88: {00000000-0000-0000-0000-000000000000}
C90: 2) Ostatné náklady zo súhrnného listu | AG90: =ROUND(SUM(AG91:AG94),2) -> 0 | AN90: =ROUND(SUM(AN91:AN94),2) -> 0 | AS90: Percent. zadanie [% nákladov rozpočtu] | AT90: Zaradenie nákladov | AU90: DPH | AV90: DPH [EUR]
D91: Ostatné náklady | AG91: =ROUND(AG87*AS91,2) -> 0 | AN91: =ROUND(AG91+AV91,2) -> 0 | AS91: 0 | AT91: stavebná časť | AU91: základná | AV91: =ROUND(IF(AU91="základná",AG91*L31,IF(AU91="znížená",AG91*L32,0)),2) -> 0 | BV91: OSTATNENAKLADY | BY91: =IF(AU91="základná",AV91,0) -> 0 | BZ91: =IF(AU91="znížená",AV91,0) -> 0 | CA91: 0 | CB91: 0 | CC91: 0 | CD91: =IF(AU91="základná",AG91,0) -> 0 | CE91: =IF(AU91="znížená",AG91,0) -> 0 | CF91: =IF(AU91="zákl. prenesená",AG91,0) -> 0 | CG91: =IF(AU91="zníž. prenesená",AG91,0) -> 0 | CH91: =IF(AU91="nulová",AG91,0) -> 0 | CI91: =IF(AU91="základná",1,IF(AU91="znížená",2,IF(AU91="zákl. prenesená",4,IF(AU91="zníž. prenesená",5,3)))) -> 1 | CJ91: =IF(AT91="stavebná časť",1,IF(8891="investičná časť",2,3)) -> 1 | CK91: =IF(D91="Vyplň vlastné","","x") -> x
D92: Vyplň vlastné | AG92: =AG87*AS92 -> 0 | AN92: =AG92+AV92 -> 0 | AS92: 0 | AT92: stavebná časť | AU92: základná | AV92: =ROUND(IF(AU92="nulová",0,IF(OR(AU92="základná",AU92="zákl. prenesená"),AG92*L31,AG92*L32)),2) -> 0 | BV92: OSTATNENAKLADYVLASTNE | BY92: =IF(AU92="základná",AV92,0) -> 0 | BZ92: =IF(AU92="znížená",AV92,0) -> 0 | CA92: =IF(AU92="zákl. prenesená",AV92,0) -> 0 | CB92: =IF(AU92="zníž. prenesená",AV92,0) -> 0 | CC92: =IF(AU92="nulová",AV92,0) -> 0 | CD92: =IF(AU92="základná",AG92,0) -> 0 | CE92: =IF(AU92="znížená",AG92,0) -> 0 | CF92: =IF(AU92="zákl. prenesená",AG92,0) -> 0 | CG92: =IF(AU92="zníž. prenesená",AG92,0) -> 0 | CH92: =IF(AU92="nulová",AG92,0) -> 0 | CI92: =IF(AU92="základná",1,IF(AU92="znížená",2,IF(AU92="zákl. prenesená",4,IF(AU92="zníž. prenesená",5,3)))) -> 1 | CJ92: =IF(AT92="stavebná časť",1,IF(8892="investičná časť",2,3)) -> 1 | CK92: =IF(D92="Vyplň vlastné","","x") -> 
D93: Vyplň vlastné | AG93: =AG87*AS93 -> 0 | AN93: =AG93+AV93 -> 0 | AS93: 0 | AT93: stavebná časť | AU93: základná | AV93: =ROUND(IF(AU93="nulová",0,IF(OR(AU93="základná",AU93="zákl. prenesená"),AG93*L31,AG93*L32)),2) -> 0 | BV93: OSTATNENAKLADYVLASTNE | BY93: =IF(AU93="základná",AV93,0) -> 0 | BZ93: =IF(AU93="znížená",AV93,0) -> 0 | CA93: =IF(AU93="zákl. prenesená",AV93,0) -> 0 | CB93: =IF(AU93="zníž. prenesená",AV93,0) -> 0 | CC93: =IF(AU93="nulová",AV93,0) -> 0 | CD93: =IF(AU93="základná",AG93,0) -> 0 | CE93: =IF(AU93="znížená",AG93,0) -> 0 | CF93: =IF(AU93="zákl. prenesená",AG93,0) -> 0 | CG93: =IF(AU93="zníž. prenesená",AG93,0) -> 0 | CH93: =IF(AU93="nulová",AG93,0) -> 0 | CI93: =IF(AU93="základná",1,IF(AU93="znížená",2,IF(AU93="zákl. prenesená",4,IF(AU93="zníž. prenesená",5,3)))) -> 1 | CJ93: =IF(AT93="stavebná časť",1,IF(8893="investičná časť",2,3)) -> 1 | CK93: =IF(D93="Vyplň vlastné","","x") -> 
D94: Vyplň vlastné | AG94: =AG87*AS94 -> 0 | AN94: =AG94+AV94 -> 0 | AS94: 0 | AT94: stavebná časť | AU94: základná | AV94: =ROUND(IF(AU94="nulová",0,IF(OR(AU94="základná",AU94="zákl. prenesená"),AG94*L31,AG94*L32)),2) -> 0 | BV94: OSTATNENAKLADYVLASTNE | BY94: =IF(AU94="základná",AV94,0) -> 0 | BZ94: =IF(AU94="znížená",AV94,0) -> 0 | CA94: =IF(AU94="zákl. prenesená",AV94,0) -> 0 | CB94: =IF(AU94="zníž. prenesená",AV94,0) -> 0 | CC94: =IF(AU94="nulová",AV94,0) -> 0 | CD94: =IF(AU94="základná",AG94,0) -> 0 | CE94: =IF(AU94="znížená",AG94,0) -> 0 | CF94: =IF(AU94="zákl. prenesená",AG94,0) -> 0 | CG94: =IF(AU94="zníž. prenesená",AG94,0) -> 0 | CH94: =IF(AU94="nulová",AG94,0) -> 0 | CI94: =IF(AU94="základná",1,IF(AU94="znížená",2,IF(AU94="zákl. prenesená",4,IF(AU94="zníž. prenesená",5,3)))) -> 1 | CJ94: =IF(AT94="stavebná časť",1,IF(8894="investičná časť",2,3)) -> 1 | CK94: =IF(D94="Vyplň vlastné","","x") -> 
C96: Celkové náklady za stavbu 1) + 2) | AG96: =ROUND(AG87+AG90,2) -> 0 | AN96: =AN87+AN90 -> 0

Sheet JablonovePozzbrojnic - Po...
D1: Hárok obsahuje: | F1: 1) Krycí list rozpočtu | H1: 2) Rekapitulácia rozpočtu | L1: 3) Rozpočet | O1: Späť na hárok: | S1: Rekapitulácia stavby
C2: optimalizované pre tlač zostáv vo formáte A4 - na výšku | S2: >> skryté stĺpce << | AT2: {823123b4-ff03-47f7-a417-373a98dec387}
AT3: 0
C4: KRYCÍ LIST ROZPOČTU | T4: v --- nižšie sa nachádzajú doplnkové a pomocné údaje k zostavám --- v | AT4: False
D6: Stavba: | F6: Požiarna zbrojnica Jablonové-prístavba
D7: JKSO: | M7: KS:
D8: Miesto: | F8: Jablonové | M8: Dátum: | O8: ='Rekapitulácia stavby'!AN8 -> 20.3.2018
D10: Objednávateľ: | M10: IČO:
E11: Obec Jablonové | M11: IČO DPH:
D13: Zhotoviteľ: | M13: IČO: | O13: =IF('Rekapitulácia stavby'!AN13="","",'Rekapitulácia stavby'!AN13) -> Vyplň údaj
E14: =IF('Rekapitulácia stavby'!E14="","",'Rekapitulácia stavby'!E14) -> Vyplň údaj | M14: IČO DPH: | O14: =IF('Rekapitulácia stavby'!AN14="","",'Rekapitulácia stavby'!AN14) -> Vyplň údaj
D16: Projektant: | M16: IČO: | O16: =IF('Rekapitulácia stavby'!AN16="","",'Rekapitulácia stavby'!AN16) -> 
E17: =IF('Rekapitulácia stavby'!E17="","",'Rekapitulácia stavby'!E17) ->  | M17: IČO DPH: | O17: =IF('Rekapitulácia stavby'!AN17="","",'Rekapitulácia stavby'!AN17) -> 
D19: Spracovateľ: | M19: IČO: | O19: =IF('Rekapitulácia stavby'!AN19="","",'Rekapitulácia stavby'!AN19) -> 
E20: =IF('Rekapitulácia stavby'!E20="","",'Rekapitulácia stavby'!E20) ->  | M20: IČO DPH: | O20: =IF('Rekapitulácia stavby'!AN20="","",'Rekapitulácia stavby'!AN20) -> 
D22: Poznámka:
D26: Náklady z rozpočtu | M26: =N87 -> 0
D27: Ostatné náklady | M27: =N113 -> 0
D29: Cena bez DPH | M29: =ROUND(M26+M27,2) -> 0
D31: DPH | E31: základná | F31: 0.2 | G31: z | H31: =ROUND((((SUM(BE113:BE120)+SUM(BE137:BE589))+SUM(BE591:BE595))),2) -> 0 | M31: =ROUND(((ROUND((SUM(BE113:BE120)+SUM(BE137:BE589)), 2)*F31)+SUM(BE591:BE595)*F31),2) -> 0
E32: znížená | F32: 0.2 | G32: z | H32: =ROUND((((SUM(BF113:BF120)+SUM(BF137:BF589))+SUM(BF591:BF595))),2) -> 0 | M32: =ROUND(((ROUND((SUM(BF113:BF120)+SUM(BF137:BF589)), 2)*F32)+SUM(BF591:BF595)*F32),2) -> 0
E33: zákl. prenesená | F33: 0.2 | G33: z | H33: =ROUND((((SUM(BG113:BG120)+SUM(BG137:BG589))+SUM(BG591:BG595))),2) -> 0 | M33: 0
E34: zníž. prenesená | F34: 0.2 | G34: z | H34: =ROUND((((SUM(BH113:BH120)+SUM(BH137:BH589))+SUM(BH591:BH595))),2) -> 0 | M34: 0
E35: nulová | F35: 0 | G35: z | H35: =ROUND((((SUM(BI113:BI120)+SUM(BI137:BI589))+SUM(BI591:BI595))),2) -> 0 | M35: 0
D37: Cena s DPH | G37: v | H37: EUR | L37: =SUM(M29:M35) -> 0
D50: Projektant | J50: Spracovateľ
D59: Dátum a podpis: | G59: Pečiatka | J59: Dátum a podpis: | N59: Pečiatka
D61: Objednávateľ | J61: Zhotoviteľ
D70: Dátum a podpis: | G70: Pečiatka | J70: Dátum a podpis: | N70: Pečiatka
C76: REKAPITULÁCIA ROZPOČTU
C78: Stavba: | F78: =F6 -> Požiarna zbrojnica Jablonové-prístavba
C80: Miesto: | F80: =F8 -> Jablonové | K80: Dátum: | M80: =IF(O8="","",O8) -> 20.3.2018
C82: Objednávateľ: | F82: =E11 -> Obec Jablonové | K82: Projektant: | M82: =E17 -> 
C83: Zhotoviteľ: | F83: =IF(E14="","",E14) -> Vyplň údaj | K83: Spracovateľ: | M83: =E20 -> 
C85: Kód - Popis | N85: Cena celkom [EUR]
C87: 1) Náklady z rozpočtu | N87: =N137 -> 0 | AU87: -1
D88: HSV - Práce a dodávky HSV | N88: =N138 -> 0
D89: 1 - Zemné práce | N89: =N139 -> 0
D90: 2 - Zakladanie | N90: =N153 -> 0
D91: 3 - Zvislé a kompletné konštrukcie | N91: =N158 -> 0
D92: 4 - Vodorovné konštrukcie | N92: =N178 -> 0
D93: 6 - Úpravy povrchov, podlahy, osadenie | N93: =N198 -> 0
D94: 9 - Ostatné konštrukcie a práce-búranie | N94: =N272 -> 0
D95: 99 - Presun hmôt HSV | N95: =N340 -> 0
D96: PSV - Práce a dodávky PSV | N96: =N342 -> 0
D97: 711 - Izolácie proti vode a vlhkosti | N97: =N343 -> 0
D98: 713 - Izolácie tepelné | N98: =N353 -> 0
D99: 762 - Konštrukcie tesárske | N99: =N365 -> 0
D100: 763 - Konštrukcie - drevostavby | N100: =N396 -> 0
D101: 764 - Konštrukcie klampiarske | N101: =N402 -> 0
D102: 765 - Konštrukcie - krytiny tvrdé | N102: =N431 -> 0
D103: 766 - Konštrukcie stolárske | N103: =N437 -> 0
D104: 767 - Konštrukcie doplnkové kovové | N104: =N461 -> 0
D105: 784 - Dokončovacie práce - maľby | N105: =N469 -> 0
D106: M - Práce a dodávky M | N106: =N474 -> 0
D107: 21-M - Elektromontáže | N107: =N475 -> 0
D108: 46-M - Zemné práce pri extr.mont.prácach | N108: =N581 -> 0
D109: HZS - Hodinové zúčtovacie sadzby | N109: =N585 -> 0
D110: OST - Ostatné | N110: =N587 -> 0
D111: VP - Práce naviac | N111: =N590 -> 0
C113: 2) Ostatné náklady | N113: =ROUND(N114+N115+N116+N117+N118+N119,2) -> 0 | U113: DPH
D114: GZS | N114: =ROUND(N87*T114,2) -> 0 | U114: znížená | AY114: VRN | BE114: =IF(U114="základná",N114,0) -> 0 | BF114: =IF(U114="znížená",N114,0) -> 0 | BG114: =IF(U114="zákl. prenesená",N114,0) -> 0 | BH114: =IF(U114="zníž. prenesená",N114,0) -> 0 | BI114: =IF(U114="nulová",N114,0) -> 0 | BJ114: 2
D115: Projektové práce | N115: =ROUND(N87*T115,2) -> 0 | U115: znížená | AY115: VRN | BE115: =IF(U115="základná",N115,0) -> 0 | BF115: =IF(U115="znížená",N115,0) -> 0 | BG115: =IF(U115="zákl. prenesená",N115,0) -> 0 | BH115: =IF(U115="zníž. prenesená",N115,0) -> 0 | BI115: =IF(U115="nulová",N115,0) -> 0 | BJ115: 2
D116: Sťažené podmienky | N116: =ROUND(N87*T116,2) -> 0 | U116: znížená | AY116: VRN | BE116: =IF(U116="základná",N116,0) -> 0 | BF116: =IF(U116="znížená",N116,0) -> 0 | BG116: =IF(U116="zákl. prenesená",N116,0) -> 0 | BH116: =IF(U116="zníž. prenesená",N116,0) -> 0 | BI116: =IF(U116="nulová",N116,0) -> 0 | BJ116: 2
D117: Vplyv prostredia | N117: =ROUND(N87*T117,2) -> 0 | U117: znížená | AY117: VRN | BE117: =IF(U117="základná",N117,0) -> 0 | BF117: =IF(U117="znížená",N117,0) -> 0 | BG117: =IF(U117="zákl. prenesená",N117,0) -> 0 | BH117: =IF(U117="zníž. prenesená",N117,0) -> 0 | BI117: =IF(U117="nulová",N117,0) -> 0 | BJ117: 2
D118: Iné VRN | N118: =ROUND(N87*T118,2) -> 0 | U118: znížená | AY118: VRN | BE118: =IF(U118="základná",N118,0) -> 0 | BF118: =IF(U118="znížená",N118,0) -> 0 | BG118: =IF(U118="zákl. prenesená",N118,0) -> 0 | BH118: =IF(U118="zníž. prenesená",N118,0) -> 0 | BI118: =IF(U118="nulová",N118,0) -> 0 | BJ118: 2
D119: Kompletačná činnosť | N119: =ROUND(N87*T119,2) -> 0 | U119: znížená | AY119: KOMPLETACNA | BE119: =IF(U119="základná",N119,0) -> 0 | BF119: =IF(U119="znížená",N119,0) -> 0 | BG119: =IF(U119="zákl. prenesená",N119,0) -> 0 | BH119: =IF(U119="zníž. prenesená",N119,0) -> 0 | BI119: =IF(U119="nulová",N119,0) -> 0 | BJ119: 2
C121: Celkové náklady za stavbu 1) + 2) | L121: =ROUND(SUM(N87+N113),2) -> 0
C127: ROZPOČET
C129: Stavba: | F129: =F6 -> Požiarna zbrojnica Jablonové-prístavba
C131: Miesto: | F131: =F8 -> Jablonové | K131: Dátum: | M131: =IF(O8="","",O8) -> 20.3.2018
C133: Objednávateľ: | F133: =E11 -> Obec Jablonové | K133: Projektant: | M133: =E17 -> 
C134: Zhotoviteľ: | F134: =IF(E14="","",E14) -> Vyplň údaj | K134: Spracovateľ: | M134: =E20 -> 
C136: PČ | D136: Typ | E136: Kód | F136: Popis | J136: MJ | K136: Množstvo | L136: J.cena [EUR] | N136: Cena celkom [EUR] | T136: Poznámka | U136: DPH | V136: J. Nh [h] | W136: Nh celkom [h] | X136: J. hmotnosť [t] | Y136: Hmotnosť celkom [t] | Z136: J. suť [t] | AA136: Suť Celkom [t]
C137: Náklady z rozpočtu | N137: =BK137 -> 0 | W137: =W138+W342+W474+W585+W587+W590 -> 0 | Y137: =Y138+Y342+Y474+Y585+Y587+Y590 -> 53.03151319 | AA137: =AA138+AA342+AA474+AA585+AA587+AA590 -> 13.7198468 | AT137: D | AU137: -1 | BK137: =BK138+BK342+BK474+BK585+BK587+BK590 -> 0
D138: HSV - Práce a dodávky HSV | N138: =BK138 -> 0 | W138: =W139+W153+W158+W178+W198+W272+W340 -> 0 | Y138: =Y139+Y153+Y158+Y178+Y198+Y272+Y340 -> 48.9822713 | AA138: =AA139+AA153+AA158+AA178+AA198+AA272+AA340 -> 13.389528 | AR138: 1 | AT138: D | AU138: 0 | AY138: ROZPOCET | BK138: =BK139+BK153+BK158+BK178+BK198+BK272+BK340 -> 0
D139: 1 - Zemné práce | N139: =BK139 -> 0 | W139: =SUM(W140:W152) -> 0 | Y139: =SUM(Y140:Y152) -> 0 | AA139: =SUM(AA140:AA152) -> 11.55 | AR139: 1 | AT139: D | AU139: 1 | AY139: ROZPOCET | BK139: =SUM(BK140:BK152) -> 0
C140: 1 | D140: K | E140: 113107111 | F140: Odstránenie krytu v ploche do 200 m2 z kameniva ťaženého, hr. do 100 mm, -0,16000t | J140: m2 | K140: 30 | L140: 0 | N140: =ROUND(L140*K140,3) -> 0 | U140: znížená | W140: =V140*K140 -> 0 | X140: 0 | Y140: =X140*K140 -> 0 | Z140: 0.16 | AA140: =Z140*K140 -> 4.8 | AR140: 4 | AT140: K | AU140: 2 | AY140: ROZPOCET | BE140: =IF(U140="základná",N140,0) -> 0 | BF140: =IF(U140="znížená",N140,0) -> 0 | BG140: =IF(U140="zákl. prenesená",N140,0) -> 0 | BH140: =IF(U140="zníž. prenesená",N140,0) -> 0 | BI140: =IF(U140="nulová",N140,0) -> 0 | BJ140: 2 | BK140: =ROUND(L140*K140,3) -> 0 | BL140: 4 | BM140: 1691083421
F141: Odstránenie podkladnej vrstvy bet. krytu | AT141: VV | AU141: 2 | AV141: 1 | AW141: True | AX141: 0 | AY141: ROZPOCET
F142: 7,5*4 | K142: 30 | AT142: VV | AU142: 2 | AV142: 2 | AW142: True | AX142: 0 | AY142: ROZPOCET
F143: Súčet | K143: 30 | AT143: VV | AU143: 2 | AV143: 4 | AW143: True | AX143: 1 | AY143: ROZPOCET
C144: 2 | D144: K | E144: 113107131 | F144: Odstránenie krytu v ploche do 200 m2 z betónu prostého, hr. vrstvy do 150 mm, -0,22500t | J144: m2 | K144: 30 | L144: 0 | N144: =ROUND(L144*K144,3) -> 0 | U144: znížená | W144: =V144*K144 -> 0 | X144: 0 | Y144: =X144*K144 -> 0 | Z144: 0.225 | AA144: =Z144*K144 -> 6.75 | AR144: 4 | AT144: K | AU144: 2 | AY144: ROZPOCET | BE144: =IF(U144="základná",N144,0) -> 0 | BF144: =IF(U144="znížená",N144,0) -> 0 | BG144: =IF(U144="zákl. prenesená",N144,0) -> 0 | BH144: =IF(U144="zníž. prenesená",N144,0) -> 0 | BI144: =IF(U144="nulová",N144,0) -> 0 | BJ144: 2 | BK144: =ROUND(L144*K144,3) -> 0 | BL144: 4 | BM144: -1668255539
F145: Odstránenie bet. krytu | AT145: VV | AU145: 2 | AV145: 1 | AW145: True | AX145: 0 | AY145: ROZPOCET
F146: 7,5*4 | K146: 30 | AT146: VV | AU146: 2 | AV146: 2 | AW146: True | AX146: 0 | AY146: ROZPOCET
F147: Súčet | K147: 30 | AT147: VV | AU147: 2 | AV147: 4 | AW147: True | AX147: 1 | AY147: ROZPOCET
C148: 3 | D148: K | E148: 132201101 | F148: Hľbenie rýh do šírky 600 mm v hornine 3 do 100 m3 | J148: m3 | K148: 9.288 | L148: 0 | N148: =ROUND(L148*K148,3) -> 0 | U148: znížená | W148: =V148*K148 -> 0 | X148: 0 | Y148: =X148*K148 -> 0 | Z148: 0 | AA148: =Z148*K148 -> 0 | AR148: 4 | AT148: K | AU148: 2 | AY148: ROZPOCET | BE148: =IF(U148="základná",N148,0) -> 0 | BF148: =IF(U148="znížená",N148,0) -> 0 | BG148: =IF(U148="zákl. prenesená",N148,0) -> 0 | BH148: =IF(U148="zníž. prenesená",N148,0) -> 0 | BI148: =IF(U148="nulová",N148,0) -> 0 | BJ148: 2 | BK148: =ROUND(L148*K148,3) -> 0 | BL148: 4 | BM148: -266981946
F149: Základy po upravený terén -1,20 m | AT149: VV | AU149: 2 | AV149: 1 | AW149: True | AX149: 0 | AY149: ROZPOCET
F150: (7,10+2,9*2)*1,2*0,6 | K150: 9.288 | AT150: VV | AU150: 2 | AV150: 2 | AW150: True | AX150: 0 | AY150: ROZPOCET
F151: Súčet | K151: 9.288 | AT151: VV | AU151: 2 | AV151: 4 | AW151: True | AX151: 1 | AY151: ROZPOCET
C152: 4 | D152: K | E152: 132201109 | F152: Príplatok k cene za lepivosť horniny 3 | J152: m3 | K152: 9.288 | L152: 0 | N152: =ROUND(L152*K152,3) -> 0 | U152: znížená | W152: =V152*K152 -> 0 | X152: 0 | Y152: =X152*K152 -> 0 | Z152: 0 | AA152: =Z152*K152 -> 0 | AR152: 4 | AT152: K | AU152: 2 | AY152: ROZPOCET | BE152: =IF(U152="základná",N152,0) -> 0 | BF152: =IF(U152="znížená",N152,0) -> 0 | BG152: =IF(U152="zákl. prenesená",N152,0) -> 0 | BH152: =IF(U152="zníž. prenesená",N152,0) -> 0 | BI152: =IF(U152="nulová",N152,0) -> 0 | BJ152: 2 | BK152: =ROUND(L152*K152,3) -> 0 | BL152: 4 | BM152: 1648442815
D153: 2 - Zakladanie | N153: =BK153 -> 0 | W153: =SUM(W154:W157) -> 0 | Y153: =SUM(Y154:Y157) -> 17.1451062 | AA153: =SUM(AA154:AA157) -> 0 | AR153: 1 | AT153: D | AU153: 1 | AY153: ROZPOCET | BK153: =SUM(BK154:BK157) -> 0
C154: 5 | D154: K | E154: 274313612 | F154: Betón základových pásov, prostý tr. C 20/25 | J154: m3 | K154: 7.74 | L154: 0 | N154: =ROUND(L154*K154,3) -> 0 | U154: znížená | W154: =V154*K154 -> 0 | X154: 2.21513 | Y154: =X154*K154 -> 17.1451062 | Z154: 0 | AA154: =Z154*K154 -> 0 | AR154: 4 | AT154: K | AU154: 2 | AY154: ROZPOCET | BE154: =IF(U154="základná",N154,0) -> 0 | BF154: =IF(U154="znížená",N154,0) -> 0 | BG154: =IF(U154="zákl. prenesená",N154,0) -> 0 | BH154: =IF(U154="zníž. prenesená",N154,0) -> 0 | BI154: =IF(U154="nulová",N154,0) -> 0 | BJ154: 2 | BK154: =ROUND(L154*K154,3) -> 0 | BL154: 4 | BM154: -1457341375
F155: Prístavba Základy -1,000 | AT155: VV | AU155: 2 | AV155: 1 | AW155: True | AX155: 0 | AY155: ROZPOCET
F156: (7,10+2,9*2)*1,00*0,6 | K156: 7.74 | AT156: VV | AU156: 2 | AV156: 2 | AW156: True | AX156: 0 | AY156: ROZPOCET
F157: Súčet | K157: 7.74 | AT157: VV | AU157: 2 | AV157: 4 | AW157: True | AX157: 1 | AY157: ROZPOCET
D158: 3 - Zvislé a kompletné konštrukcie | N158: =BK158 -> 0 | W158: =SUM(W159:W177) -> 0 | Y158: =SUM(Y159:Y177) -> 8.56984872 | AA158: =SUM(AA159:AA177) -> 0 | AR158: 1 | AT158: D | AU158: 1 | AY158: ROZPOCET | BK158: =SUM(BK159:BK177) -> 0
C159: 6 | D159: K | E159: 310239211 | F159: Zamurovanie otvoru s plochou nad 1 do 4m2 v murive nadzákladného tehlami na maltu vápennocementovú | J159: m3 | K159: 0.44 | L159: 0 | N159: =ROUND(L159*K159,3) -> 0 | U159: znížená | W159: =V159*K159 -> 0 | X159: 1.87196 | Y159: =X159*K159 -> 0.8236624 | Z159: 0 | AA159: =Z159*K159 -> 0 | AR159: 4 | AT159: K | AU159: 2 | AY159: ROZPOCET | BE159: =IF(U159="základná",N159,0) -> 0 | BF159: =IF(U159="znížená",N159,0) -> 0 | BG159: =IF(U159="zákl. prenesená",N159,0) -> 0 | BH159: =IF(U159="zníž. prenesená",N159,0) -> 0 | BI159: =IF(U159="nulová",N159,0) -> 0 | BJ159: 2 | BK159: =ROUND(L159*K159,3) -> 0 | BL159: 4 | BM159: 798502966
F160: Zamurovanie otvoru - vybúrané sklobet. tvárnice 0,55x2,00m | AT160: VV | AU160: 2 | AV160: 1 | AW160: True | AX160: 0 | AY160: ROZPOCET
F161: 0,55*2,00*0,4 | K161: 0.44 | AT161: VV | AU161: 2 | AV161: 2 | AW161: True | AX161: 0 | AY161: ROZPOCET
F162: Súčet | K162: 0.44 | AT162: VV | AU162: 2 | AV162: 4 | AW162: True | AX162: 1 | AY162: ROZPOCET
C163: 7 | D163: K | E163: 311273115 | F163: Murivo nosné z tvárnic YTONG P+D s úchopnou kapsou na MC-5 a tenkovrst.,maltu YTONG hr.300 P2-350 (LAMBDA) | J163: m3 | K163: 14.748 | L163: 0 | N163: =ROUND(L163*K163,3) -> 0 | U163: znížená | W163: =V163*K163 -> 0 | X163: 0.48434 | Y163: =X163*K163 -> 7.14304632 | Z163: 0 | AA163: =Z163*K163 -> 0 | AR163: 4 | AT163: K | AU163: 2 | AY163: ROZPOCET | BE163: =IF(U163="základná",N163,0) -> 0 | BF163: =IF(U163="znížená",N163,0) -> 0 | BG163: =IF(U163="zákl. prenesená",N163,0) -> 0 | BH163: =IF(U163="zníž. prenesená",N163,0) -> 0 | BI163: =IF(U163="nulová",N163,0) -> 0 | BJ163: 2 | BK163: =ROUND(L163*K163,3) -> 0 | BL163: 4 | BM163: -173251166
F164: I.N.P. | AT164: VV | AU164: 2 | AV164: 1 | AW164: True | AX164: 0 | AY164: ROZPOCET
F165: (7,1*3,7)*0,3 | K165: 7.881 | AT165: VV | AU165: 2 | AV165: 2 | AW165: True | AX165: 0 | AY165: ROZPOCET
F166: (3,3*2)*(5,9+3,6)/2*0,3 | K166: 9.405 | AT166: VV | AU166: 2 | AV166: 2 | AW166: True | AX166: 0 | AY166: ROZPOCET
F167: Medzisúčet | K167: 17.286 | AT167: VV | AU167: 2 | AV167: 3 | AW167: True | AX167: 0 | AY167: ROZPOCET
F168: Odpočet otvorov | AT168: VV | AU168: 2 | AV168: 1 | AW168: True | AX168: 0 | AY168: ROZPOCET
F169: -(1,2*0,6*2)*0,3 | K169: -0.432 | AT169: VV | AU169: 2 | AV169: 2 | AW169: True | AX169: 0 | AY169: ROZPOCET
F170: -(2,6*2,7)*0,3 | K170: -2.106 | AT170: VV | AU170: 2 | AV170: 2 | AW170: True | AX170: 0 | AY170: ROZPOCET
F171: Medzisúčet | K171: -2.538 | AT171: VV | AU171: 2 | AV171: 3 | AW171: True | AX171: 0 | AY171: ROZPOCET
F172: Súčet | K172: 14.748 | AT172: VV | AU172: 2 | AV172: 4 | AW172: True | AX172: 1 | AY172: ROZPOCET
C173: 8 | D173: K | E173: 317162140 | F173: Keramický preklad POROTHERM 23,8, šírky 70 mm, výšky 238 mm, dĺžky 3250 mm | J173: ks | K173: 3 | L173: 0 | N173: =ROUND(L173*K173,3) -> 0 | U173: znížená | W173: =V173*K173 -> 0 | X173: 0.12672 | Y173: =X173*K173 -> 0.38016 | Z173: 0 | AA173: =Z173*K173 -> 0 | AR173: 4 | AT173: K | AU173: 2 | AY173: ROZPOCET | BE173: =IF(U173="základná",N173,0) -> 0 | BF173: =IF(U173="znížená",N173,0) -> 0 | BG173: =IF(U173="zákl. prenesená",N173,0) -> 0 | BH173: =IF(U173="zníž. prenesená",N173,0) -> 0 | BI173: =IF(U173="nulová",N173,0) -> 0 | BJ173: 2 | BK173: =ROUND(L173*K173,3) -> 0 | BL173: 4 | BM173: -1901914391
C174: 9 | D174: K | E174: 317165223 | F174: Nosný preklad YTONG šírky 300 mm, výšky 249 mm, dĺžky 1750 mm | J174: ks | K174: 2 | L174: 0 | N174: =ROUND(L174*K174,3) -> 0 | U174: znížená | W174: =V174*K174 -> 0 | X174: 0.11149 | Y174: =X174*K174 -> 0.22298 | Z174: 0 | AA174: =Z174*K174 -> 0 | AR174: 4 | AT174: K | AU174: 2 | AY174: ROZPOCET | BE174: =IF(U174="základná",N174,0) -> 0 | BF174: =IF(U174="znížená",N174,0) -> 0 | BG174: =IF(U174="zákl. prenesená",N174,0) -> 0 | BH174: =IF(U174="zníž. prenesená",N174,0) -> 0 | BI174: =IF(U174="nulová",N174,0) -> 0 | BJ174: 2 | BK174: =ROUND(L174*K174,3) -> 0 | BL174: 4 | BM174: -820997910
F175: Prístavba I.N.P. okná | AT175: VV | AU175: 2 | AV175: 1 | AW175: True | AX175: 0 | AY175: ROZPOCET
F176: 2 | K176: 2 | AT176: VV | AU176: 2 | AV176: 2 | AW176: True | AX176: 0 | AY176: ROZPOCET
F177: Súčet | K177: 2 | AT177: VV | AU177: 2 | AV177: 4 | AW177: True | AX177: 1 | AY177: ROZPOCET
D178: 4 - Vodorovné konštrukcie | N178: =BK178 -> 0 | W178: =SUM(W179:W197) -> 0 | Y178: =SUM(Y179:Y197) -> 2.88892864 | AA178: =SUM(AA179:AA197) -> 0 | AR178: 1 | AT178: D | AU178: 1 | AY178: ROZPOCET | BK178: =SUM(BK179:BK197) -> 0
C179: 10 | D179: K | E179: 417321414 | F179: Betón stužujúcich pásov a vencov železový tr. C 20/25 | J179: m3 | K179: 1.215 | L179: 0 | N179: =ROUND(L179*K179,3) -> 0 | U179: znížená | W179: =V179*K179 -> 0 | X179: 2.29698 | Y179: =X179*K179 -> 2.7908307 | Z179: 0 | AA179: =Z179*K179 -> 0 | AR179: 4 | AT179: K | AU179: 2 | AY179: ROZPOCET | BE179: =IF(U179="základná",N179,0) -> 0 | BF179: =IF(U179="znížená",N179,0) -> 0 | BG179: =IF(U179="zákl. prenesená",N179,0) -> 0 | BH179: =IF(U179="zníž. prenesená",N179,0) -> 0 | BI179: =IF(U179="nulová",N179,0) -> 0 | BJ179: 2 | BK179: =ROUND(L179*K179,3) -> 0 | BL179: 4 | BM179: 1024998883
F180: Prístavba Veniec I.N.P. | AT180: VV | AU180: 2 | AV180: 1 | AW180: True | AX180: 0 | AY180: ROZPOCET
F181: (7,1+3,2*2)*0,30*0,30 | K181: 1.215 | AT181: VV | AU181: 2 | AV181: 2 | AW181: True | AX181: 0 | AY181: ROZPOCET
F182: Súčet | K182: 1.215 | AT182: VV | AU182: 2 | AV182: 4 | AW182: True | AX182: 1 | AY182: ROZPOCET
C183: 11 | D183: K | E183: 417351115 | F183: Debnenie bočníc stužujúcich pásov a vencov vrátane vzpier zhotovenie | J183: m2 | K183: 8.1 | L183: 0 | N183: =ROUND(L183*K183,3) -> 0 | U183: znížená | W183: =V183*K183 -> 0 | X183: 0.00341 | Y183: =X183*K183 -> 0.027621 | Z183: 0 | AA183: =Z183*K183 -> 0 | AR183: 4 | AT183: K | AU183: 2 | AY183: ROZPOCET | BE183: =IF(U183="základná",N183,0) -> 0 | BF183: =IF(U183="znížená",N183,0) -> 0 | BG183: =IF(U183="zákl. prenesená",N183,0) -> 0 | BH183: =IF(U183="zníž. prenesená",N183,0) -> 0 | BI183: =IF(U183="nulová",N183,0) -> 0 | BJ183: 2 | BK183: =ROUND(L183*K183,3) -> 0 | BL183: 4 | BM183: 2083815832
F184: Prístavba Veniec I.N.P. | AT184: VV | AU184: 2 | AV184: 1 | AW184: True | AX184: 0 | AY184: ROZPOCET
F185: (7,1+3,2*2)*0,30*2 | K185: 8.1 | AT185: VV | AU185: 2 | AV185: 2 | AW185: True | AX185: 0 | AY185: ROZPOCET
F186: Súčet | K186: 8.1 | AT186: VV | AU186: 2 | AV186: 4 | AW186: True | AX186: 1 | AY186: ROZPOCET
C187: 12 | D187: K | E187: 417351116 | F187: Debnenie bočníc stužujúcich pásov a vencov vrátane vzpier odstránenie | J187: m2 | K187: 8.1 | L187: 0 | N187: =ROUND(L187*K187,3) -> 0 | U187: znížená | W187: =V187*K187 -> 0 | X187: 0 | Y187: =X187*K187 -> 0 | Z187: 0 | AA187: =Z187*K187 -> 0 | AR187: 4 | AT187: K | AU187: 2 | AY187: ROZPOCET | BE187: =IF(U187="základná",N187,0) -> 0 | BF187: =IF(U187="znížená",N187,0) -> 0 | BG187: =IF(U187="zákl. prenesená",N187,0) -> 0 | BH187: =IF(U187="zníž. prenesená",N187,0) -> 0 | BI187: =IF(U187="nulová",N187,0) -> 0 | BJ187: 2 | BK187: =ROUND(L187*K187,3) -> 0 | BL187: 4 | BM187: -1076478178
C188: 13 | D188: K | E188: 417361821 | F188: Výstuž stužujúcich pásov a vencov z betonárskej ocele 10505 | J188: t | K188: 0.066 | L188: 0 | N188: =ROUND(L188*K188,3) -> 0 | U188: znížená | W188: =V188*K188 -> 0 | X188: 1.01684 | Y188: =X188*K188 -> 0.06711144 | Z188: 0 | AA188: =Z188*K188 -> 0 | AR188: 4 | AT188: K | AU188: 2 | AY188: ROZPOCET | BE188: =IF(U188="základná",N188,0) -> 0 | BF188: =IF(U188="znížená",N188,0) -> 0 | BG188: =IF(U188="zákl. prenesená",N188,0) -> 0 | BH188: =IF(U188="zníž. prenesená",N188,0) -> 0 | BI188: =IF(U188="nulová",N188,0) -> 0 | BJ188: 2 | BK188: =ROUND(L188*K188,3) -> 0 | BL188: 4 | BM188: -1389458921
F189: Prístavba veniec I.N.P. | AT189: VV | AU189: 2 | AV189: 1 | AW189: True | AX189: 0 | AY189: ROZPOCET
F190: 14,2*4*0,89/1000 | K190: 0.051 | AT190: VV | AU190: 2 | AV190: 2 | AW190: True | AX190: 0 | AY190: ROZPOCET
F191: (7,1+3,2*2)/0,200*0,22/1000 | K191: 0.015 | AT191: VV | AU191: 2 | AV191: 2 | AW191: True | AX191: 0 | AY191: ROZPOCET
F192: Súčet | K192: 0.066 | AT192: VV | AU192: 2 | AV192: 4 | AW192: True | AX192: 1 | AY192: ROZPOCET
C193: 14 | D193: K | E193: 417391121 | F193: Montáž obkladu betónových konštrukcií vykonaný súčasne s betónovaním Kombidoskou KD | J193: m2 | K193: 4.05 | L193: 0 | N193: =ROUND(L193*K193,3) -> 0 | U193: znížená | W193: =V193*K193 -> 0 | X193: 0.00015 | Y193: =X193*K193 -> 0.0006075 | Z193: 0 | AA193: =Z193*K193 -> 0 | AR193: 4 | AT193: K | AU193: 2 | AY193: ROZPOCET | BE193: =IF(U193="základná",N193,0) -> 0 | BF193: =IF(U193="znížená",N193,0) -> 0 | BG193: =IF(U193="zákl. prenesená",N193,0) -> 0 | BH193: =IF(U193="zníž. prenesená",N193,0) -> 0 | BI193: =IF(U193="nulová",N193,0) -> 0 | BJ193: 2 | BK193: =ROUND(L193*K193,3) -> 0 | BL193: 4 | BM193: 1970539930
F194: Prístavba Veniec I.N.P. | AT194: VV | AU194: 2 | AV194: 1 | AW194: True | AX194: 0 | AY194: ROZPOCET
F195: (7,1+3,2*2)*0,30 | K195: 4.05 | AT195: VV | AU195: 2 | AV195: 2 | AW195: True | AX195: 0 | AY195: ROZPOCET
F196: Súčet | K196: 4.05 | AT196: VV | AU196: 2 | AV196: 4 | AW196: True | AX196: 1 | AY196: ROZPOCET
C197: 15 | D197: M | E197: 5959040055 | F197: KOMBIDOSKA KD 50 drevocementová doska s polystyrénom 500x2000 mm, hr. 50 mm (doska 10 mm) | J197: m2 | K197: 0.394 | L197: 0 | N197: =ROUND(L197*K197,3) -> 0 | U197: znížená | W197: =V197*K197 -> 0 | X197: 0.007 | Y197: =X197*K197 -> 0.002758 | Z197: 0 | AA197: =Z197*K197 -> 0 | AR197: 8 | AT197: M | AU197: 2 | AY197: ROZPOCET | BE197: =IF(U197="základná",N197,0) -> 0 | BF197: =IF(U197="znížená",N197,0) -> 0 | BG197: =IF(U197="zákl. prenesená",N197,0) -> 0 | BH197: =IF(U197="zníž. prenesená",N197,0) -> 0 | BI197: =IF(U197="nulová",N197,0) -> 0 | BJ197: 2 | BK197: =ROUND(L197*K197,3) -> 0 | BL197: 4 | BM197: 1985624620
D198: 6 - Úpravy povrchov, podlahy, osadenie | N198: =BK198 -> 0 | W198: =SUM(W199:W271) -> 0 | Y198: =SUM(Y199:Y271) -> 18.85454644 | AA198: =SUM(AA199:AA271) -> 0 | AR198: 1 | AT198: D | AU198: 1 | AY198: ROZPOCET | BK198: =SUM(BK199:BK271) -> 0
C199: 16 | D199: K | E199: 612425931 | F199: Omietka vápenná vnútorného ostenia okenného alebo dverného štuková | J199: m2 | K199: 6.39 | L199: 0 | N199: =ROUND(L199*K199,3) -> 0 | U199: znížená | W199: =V199*K199 -> 0 | X199: 0.03756 | Y199: =X199*K199 -> 0.2400084 | Z199: 0 | AA199: =Z199*K199 -> 0 | AR199: 4 | AT199: K | AU199: 2 | AY199: ROZPOCET | BE199: =IF(U199="základná",N199,0) -> 0 | BF199: =IF(U199="znížená",N199,0) -> 0 | BG199: =IF(U199="zákl. prenesená",N199,0) -> 0 | BH199: =IF(U199="zníž. prenesená",N199,0) -> 0 | BI199: =IF(U199="nulová",N199,0) -> 0 | BJ199: 2 | BK199: =ROUND(L199*K199,3) -> 0 | BL199: 4 | BM199: 1871016166
F200: Omietka ostenia okien a dverí vnútorná | AT200: VV | AU200: 2 | AV200: 1 | AW200: True | AX200: 0 | AY200: ROZPOCET
F201: ((0,9+2,2*2+1,3*2+1,2*2+(1,2+0,)*2+8))*0,2 | K201: 4.14 | AT201: VV | AU201: 2 | AV201: 2 | AW201: True | AX201: 0 | AY201: ROZPOCET
F202: Zamurovanie otvoru - vybúrané sklobet. tvárnice omietka | AT202: VV | AU202: 2 | AV202: 1 | AW202: True | AX202: 0 | AY202: ROZPOCET
F203: 0,90*2,50 | K203: 2.25 | AT203: VV | AU203: 2 | AV203: 2 | AW203: True | AX203: 0 | AY203: ROZPOCET
F204: Súčet | K204: 6.39 | AT204: VV | AU204: 2 | AV204: 4 | AW204: True | AX204: 1 | AY204: ROZPOCET
C205: 17 | D205: K | E205: 612465116 | F205: Príprava vnútorného podkladu stien BAUMIT, Univerzálny základ (Baumit UniPrimer) | J205: m2 | K205: 54.13 | L205: 0 | N205: =ROUND(L205*K205,3) -> 0 | U205: znížená | W205: =V205*K205 -> 0 | X205: 0.0004 | Y205: =X205*K205 -> 0.021652 | Z205: 0 | AA205: =Z205*K205 -> 0 | AR205: 4 | AT205: K | AU205: 2 | AY205: ROZPOCET | BE205: =IF(U205="základná",N205,0) -> 0 | BF205: =IF(U205="znížená",N205,0) -> 0 | BG205: =IF(U205="zákl. prenesená",N205,0) -> 0 | BH205: =IF(U205="zníž. prenesená",N205,0) -> 0 | BI205: =IF(U205="nulová",N205,0) -> 0 | BJ205: 2 | BK205: =ROUND(L205*K205,3) -> 0 | BL205: 4 | BM205: 1200562851
F206: Omietka ostenia okien a dverí vnútorná | AT206: VV | AU206: 2 | AV206: 1 | AW206: True | AX206: 0 | AY206: ROZPOCET
F207: ((0,9+2,2*2+1,3*2+1,2*2+(1,2+0,6)*2+8))*0,2 | K207: 4.38 | AT207: VV | AU207: 2 | AV207: 2 | AW207: True | AX207: 0 | AY207: ROZPOCET
F208: Zamurovanie otvoru - vybúrané sklobet. tvárnice omietka | AT208: VV | AU208: 2 | AV208: 1 | AW208: True | AX208: 0 | AY208: ROZPOCET
F209: 0,90*2,50 | K209: 2.25 | AT209: VV | AU209: 2 | AV209: 2 | AW209: True | AX209: 0 | AY209: ROZPOCET
F210: Prístavba | AT210: VV | AU210: 2 | AV210: 1 | AW210: True | AX210: 0 | AY210: ROZPOCET
F211: (7,1*3,6) | K211: 25.56 | AT211: VV | AU211: 2 | AV211: 2 | AW211: True | AX211: 0 | AY211: ROZPOCET
F212: (3,2*2)*(5,9+3,6)/2 | K212: 30.4 | AT212: VV | AU212: 2 | AV212: 2 | AW212: True | AX212: 0 | AY212: ROZPOCET
F213: Medzisúčet | K213: 62.59 | AT213: VV | AU213: 2 | AV213: 3 | AW213: True | AX213: 0 | AY213: ROZPOCET
F214: Odpočet otvorov | AT214: VV | AU214: 2 | AV214: 1 | AW214: True | AX214: 0 | AY214: ROZPOCET
F215: -(1,2*0,6*2) | K215: -1.44 | AT215: VV | AU215: 2 | AV215: 2 | AW215: True | AX215: 0 | AY215: ROZPOCET
F216: -(2,6*2,7) | K216: -7.02 | AT216: VV | AU216: 2 | AV216: 2 | AW216: True | AX216: 0 | AY216: ROZPOCET
F217: Medzisúčet | K217: -8.46 | AT217: VV | AU217: 2 | AV217: 3 | AW217: True | AX217: 0 | AY217: ROZPOCET
F218: Súčet | K218: 54.13 | AT218: VV | AU218: 2 | AV218: 4 | AW218: True | AX218: 1 | AY218: ROZPOCET
C219: 18 | D219: K | E219: 612465136 | F219: Vnútorná omietka stien BAUMIT, vápennocementová, strojné miešanie, ručné nanášanie, Baumit MVR Uni (Baumit MVR Uni) hr. 10 mm | J219: m2 | K219: 54.13 | L219: 0 | N219: =ROUND(L219*K219,3) -> 0 | U219: znížená | W219: =V219*K219 -> 0 | X219: 0.01312 | Y219: =X219*K219 -> 0.7101856 | Z219: 0 | AA219: =Z219*K219 -> 0 | AR219: 4 | AT219: K | AU219: 2 | AY219: ROZPOCET | BE219: =IF(U219="základná",N219,0) -> 0 | BF219: =IF(U219="znížená",N219,0) -> 0 | BG219: =IF(U219="zákl. prenesená",N219,0) -> 0 | BH219: =IF(U219="zníž. prenesená",N219,0) -> 0 | BI219: =IF(U219="nulová",N219,0) -> 0 | BJ219: 2 | BK219: =ROUND(L219*K219,3) -> 0 | BL219: 4 | BM219: 1552286435
C220: 19 | D220: K | E220: 621462146 | F220: Vonkajšia omietka podhľadov tenkovrstvová BAUMIT, strojné nanášanie, Baumit Vápenná tenkovrstvová omietka (Baumit KalkDünnputz) hr. 8 mm | J220: m2 | K220: 79.675 | L220: 0 | N220: =ROUND(L220*K220,3) -> 0 | U220: znížená | W220: =V220*K220 -> 0 | X220: 0.00924 | Y220: =X220*K220 -> 0.736197 | Z220: 0 | AA220: =Z220*K220 -> 0 | AR220: 4 | AT220: K | AU220: 2 | AY220: ROZPOCET | BE220: =IF(U220="základná",N220,0) -> 0 | BF220: =IF(U220="znížená",N220,0) -> 0 | BG220: =IF(U220="zákl. prenesená",N220,0) -> 0 | BH220: =IF(U220="zníž. prenesená",N220,0) -> 0 | BI220: =IF(U220="nulová",N220,0) -> 0 | BJ220: 2 | BK220: =ROUND(L220*K220,3) -> 0 | BL220: 4 | BM220: 821571941
F221: Omietka vonkajšia ostenia okien a dverí | AT221: VV | AU221: 2 | AV221: 1 | AW221: True | AX221: 0 | AY221: ROZPOCET
F222: ((0,9+2,2*2+1,3*2+1,2*2+(1,2+0,)*2+8))*0,45 | K222: 9.315 | AT222: VV | AU222: 2 | AV222: 2 | AW222: True | AX222: 0 | AY222: ROZPOCET
F223: 3,3*3*0,8+3,3*3*0,8 | K223: 15.84 | AT223: VV | AU223: 2 | AV223: 2 | AW223: True | AX223: 0 | AY223: ROZPOCET
F224: Zamurovanie otvoru - vybúrané sklobet. tvárnice omietka | AT224: VV | AU224: 2 | AV224: 1 | AW224: True | AX224: 0 | AY224: ROZPOCET
F225: 0,90*2,50 | K225: 2.25 | AT225: VV | AU225: 2 | AV225: 2 | AW225: True | AX225: 0 | AY225: ROZPOCET
F226: Prístavba okná | AT226: VV | AU226: 2 | AV226: 1 | AW226: True | AX226: 0 | AY226: ROZPOCET
F227: (1,2+0,6)*2*2*0,3 | K227: 2.16 | AT227: VV | AU227: 2 | AV227: 2 | AW227: True | AX227: 0 | AY227: ROZPOCET
F228: (2,7+2,6*2)*0,3 | K228: 2.37 | AT228: VV | AU228: 2 | AV228: 2 | AW228: True | AX228: 0 | AY228: ROZPOCET
F229: Medzisúčet | K229: 31.935 | AT229: VV | AU229: 2 | AV229: 3 | AW229: True | AX229: 0 | AY229: ROZPOCET
F230: Prístavba obvodové steny | AT230: VV | AU230: 2 | AV230: 1 | AW230: True | AX230: 0 | AY230: ROZPOCET
F231: (7,1*3,5) | K231: 24.85 | AT231: VV | AU231: 2 | AV231: 2 | AW231: True | AX231: 0 | AY231: ROZPOCET
F232: (3,3*2)*(5,9+3,6)/2 | K232: 31.35 | AT232: VV | AU232: 2 | AV232: 2 | AW232: True | AX232: 0 | AY232: ROZPOCET
F233: Medzisúčet | K233: 56.2 | AT233: VV | AU233: 2 | AV233: 3 | AW233: True | AX233: 0 | AY233: ROZPOCET
F234: Odpočet otvorov | AT234: VV | AU234: 2 | AV234: 1 | AW234: True | AX234: 0 | AY234: ROZPOCET
F235: -(1,2*0,6*2) | K235: -1.44 | AT235: VV | AU235: 2 | AV235: 2 | AW235: True | AX235: 0 | AY235: ROZPOCET
F236: -(2,6*2,7) | K236: -7.02 | AT236: VV | AU236: 2 | AV236: 2 | AW236: True | AX236: 0 | AY236: ROZPOCET
F237: Medzisúčet | K237: -8.46 | AT237: VV | AU237: 2 | AV237: 3 | AW237: True | AX237: 0 | AY237: ROZPOCET
F238: Súčet | K238: 79.675 | AT238: VV | AU238: 2 | AV238: 4 | AW238: True | AX238: 1 | AY238: ROZPOCET
C239: 20 | D239: K | E239: 622401121 | F239: Príplatok k vonkajšej omietke stien za hydrofobnú prísadu do štukovej vrstvy | J239: m2 | K239: 79.675 | L239: 0 | N239: =ROUND(L239*K239,3) -> 0 | U239: znížená | W239: =V239*K239 -> 0 | X239: 4e-05 | Y239: =X239*K239 -> 0.003187 | Z239: 0 | AA239: =Z239*K239 -> 0 | AR239: 4 | AT239: K | AU239: 2 | AY239: ROZPOCET | BE239: =IF(U239="základná",N239,0) -> 0 | BF239: =IF(U239="znížená",N239,0) -> 0 | BG239: =IF(U239="zákl. prenesená",N239,0) -> 0 | BH239: =IF(U239="zníž. prenesená",N239,0) -> 0 | BI239: =IF(U239="nulová",N239,0) -> 0 | BJ239: 2 | BK239: =ROUND(L239*K239,3) -> 0 | BL239: 4 | BM239: -358620116
C240: 21 | D240: K | E240: 625251222 | F240: Kontaktný zatepľovací systém ostenia hr. 20 mm BAUMIT OPEN - HIGH TECH riešenie (grafitový EPS-F) | J240: m2 | K240: 17.73 | L240: 0 | N240: =ROUND(L240*K240,3) -> 0 | U240: znížená | W240: =V240*K240 -> 0 | X240: 0.01043 | Y240: =X240*K240 -> 0.1849239 | Z240: 0 | AA240: =Z240*K240 -> 0 | AR240: 4 | AT240: K | AU240: 2 | AY240: ROZPOCET | BE240: =IF(U240="základná",N240,0) -> 0 | BF240: =IF(U240="znížená",N240,0) -> 0 | BG240: =IF(U240="zákl. prenesená",N240,0) -> 0 | BH240: =IF(U240="zníž. prenesená",N240,0) -> 0 | BI240: =IF(U240="nulová",N240,0) -> 0 | BJ240: 2 | BK240: =ROUND(L240*K240,3) -> 0 | BL240: 4 | BM240: -1181742841
F241: Omietka ostenia okien adverí | AT241: VV | AU241: 2 | AV241: 1 | AW241: True | AX241: 0 | AY241: ROZPOCET
F242: ((0,9+2,2*2+1,3*2+1,2*2+(1,2+0,6)*2*8))*0,15 | K242: 5.865 | AT242: VV | AU242: 2 | AV242: 2 | AW242: True | AX242: 0 | AY242: ROZPOCET
F243: 3,3*3*0,4+3,3*3*0,45 | K243: 8.415 | AT243: VV | AU243: 2 | AV243: 2 | AW243: True | AX243: 0 | AY243: ROZPOCET
F244: Prístavba | AT244: VV | AU244: 2 | AV244: 1 | AW244: True | AX244: 0 | AY244: ROZPOCET
F245: (1,2+0,6)*2*2*0,15 | K245: 1.08 | AT245: VV | AU245: 2 | AV245: 2 | AW245: True | AX245: 0 | AY245: ROZPOCET
F246: (2,7+2,6*2)*0,3 | K246: 2.37 | AT246: VV | AU246: 2 | AV246: 2 | AW246: True | AX246: 0 | AY246: ROZPOCET
F247: Súčet | K247: 17.73 | AT247: VV | AU247: 2 | AV247: 4 | AW247: True | AX247: 1 | AY247: ROZPOCET
C248: 22 | D248: K | E248: 631315661 | F248: Mazanina z betónu prostého (m3) tr. C 20/25 hr.nad 120 do 240 mm | J248: m3 | K248: 3.728 | L248: 0 | N248: =ROUND(L248*K248,3) -> 0 | U248: znížená | W248: =V248*K248 -> 0 | X248: 2.24048 | Y248: =X248*K248 -> 8.35250944 | Z248: 0 | AA248: =Z248*K248 -> 0 | AR248: 4 | AT248: K | AU248: 2 | AY248: ROZPOCET | BE248: =IF(U248="základná",N248,0) -> 0 | BF248: =IF(U248="znížená",N248,0) -> 0 | BG248: =IF(U248="zákl. prenesená",N248,0) -> 0 | BH248: =IF(U248="zníž. prenesená",N248,0) -> 0 | BI248: =IF(U248="nulová",N248,0) -> 0 | BJ248: 2 | BK248: =ROUND(L248*K248,3) -> 0 | BL248: 4 | BM248: -1161713192
F249: Prístavba Podkladný betón- základy I.N.P. | AT249: VV | AU249: 2 | AV249: 1 | AW249: True | AX249: 0 | AY249: ROZPOCET
F250: (3,5*7,1)*0,15 | K250: 3.728 | AT250: VV | AU250: 2 | AV250: 2 | AW250: True | AX250: 0 | AY250: ROZPOCET
F251: Súčet | K251: 3.728 | AT251: VV | AU251: 2 | AV251: 4 | AW251: True | AX251: 1 | AY251: ROZPOCET
C252: 23 | D252: K | E252: 631319175 | F252: Príplatok za strhnutie povrchu mazaniny latou pre hr. obidvoch vrstiev mazaniny nad 120 do 240 mm | J252: m3 | K252: 3.728 | L252: 0 | N252: =ROUND(L252*K252,3) -> 0 | U252: znížená | W252: =V252*K252 -> 0 | X252: 0 | Y252: =X252*K252 -> 0 | Z252: 0 | AA252: =Z252*K252 -> 0 | AR252: 4 | AT252: K | AU252: 2 | AY252: ROZPOCET | BE252: =IF(U252="základná",N252,0) -> 0 | BF252: =IF(U252="znížená",N252,0) -> 0 | BG252: =IF(U252="zákl. prenesená",N252,0) -> 0 | BH252: =IF(U252="zníž. prenesená",N252,0) -> 0 | BI252: =IF(U252="nulová",N252,0) -> 0 | BJ252: 2 | BK252: =ROUND(L252*K252,3) -> 0 | BL252: 4 | BM252: 1497345095
C253: 24 | D253: K | E253: 631325745 | F253: Mazanina z betónu prostého (m2) vystužená oceľovými vláknami (Dramix), betón tr. C 25/30 hr. 100 mm | J253: m2 | K253: 21.12 | L253: 0 | N253: =ROUND(L253*K253,3) -> 0 | U253: znížená | W253: =V253*K253 -> 0 | X253: 0.24442 | Y253: =X253*K253 -> 5.1621504 | Z253: 0 | AA253: =Z253*K253 -> 0 | AR253: 4 | AT253: K | AU253: 2 | AY253: ROZPOCET | BE253: =IF(U253="základná",N253,0) -> 0 | BF253: =IF(U253="znížená",N253,0) -> 0 | BG253: =IF(U253="zákl. prenesená",N253,0) -> 0 | BH253: =IF(U253="zníž. prenesená",N253,0) -> 0 | BI253: =IF(U253="nulová",N253,0) -> 0 | BJ253: 2 | BK253: =ROUND(L253*K253,3) -> 0 | BL253: 4 | BM253: 667360210
F254: Prístavba podlaha | AT254: VV | AU254: 2 | AV254: 1 | AW254: True | AX254: 0 | AY254: ROZPOCET
F255: 6,6*3,2 | K255: 21.12 | AT255: VV | AU255: 2 | AV255: 2 | AW255: True | AX255: 0 | AY255: ROZPOCET
F256: Súčet | K256: 21.12 | AT256: VV | AU256: 2 | AV256: 4 | AW256: True | AX256: 1 | AY256: ROZPOCET
C257: 25 | D257: K | E257: 631362442 | F257: Výstuž mazanín z betónov (z kameniva) a z ľahkých betónov zo sietí KARI, priemer drôtu 8/8 mm, veľkosť oka 150x150 mm | J257: m2 | K257: 33.31 | L257: 0 | N257: =ROUND(L257*K257,3) -> 0 | U257: znížená | W257: =V257*K257 -> 0 | X257: 0.00627 | Y257: =X257*K257 -> 0.2088537 | Z257: 0 | AA257: =Z257*K257 -> 0 | AR257: 4 | AT257: K | AU257: 2 | AY257: ROZPOCET | BE257: =IF(U257="základná",N257,0) -> 0 | BF257: =IF(U257="znížená",N257,0) -> 0 | BG257: =IF(U257="zákl. prenesená",N257,0) -> 0 | BH257: =IF(U257="zníž. prenesená",N257,0) -> 0 | BI257: =IF(U257="nulová",N257,0) -> 0 | BJ257: 2 | BK257: =ROUND(L257*K257,3) -> 0 | BL257: 4 | BM257: 654299732
F258: Prístavba Podkladný betón- základy I.N.P. | AT258: VV | AU258: 2 | AV258: 1 | AW258: True | AX258: 0 | AY258: ROZPOCET
F259: (3,5*7,1) | K259: 24.85 | AT259: VV | AU259: 2 | AV259: 2 | AW259: True | AX259: 0 | AY259: ROZPOCET
F260: (3,5*2+7,1)*0,6 | K260: 8.46 | AT260: VV | AU260: 2 | AV260: 2 | AW260: True | AX260: 0 | AY260: ROZPOCET
F261: Súčet | K261: 33.31 | AT261: VV | AU261: 2 | AV261: 4 | AW261: True | AX261: 1 | AY261: ROZPOCET
C262: 26 | D262: K | E262: 631571003 | F262: Násyp zo štrkopiesku 0-32 (pre spevnenie podkladu) | J262: m3 | K262: 1.711 | L262: 0 | N262: =ROUND(L262*K262,3) -> 0 | U262: znížená | W262: =V262*K262 -> 0 | X262: 1.837 | Y262: =X262*K262 -> 3.143107 | Z262: 0 | AA262: =Z262*K262 -> 0 | AR262: 4 | AT262: K | AU262: 2 | AY262: ROZPOCET | BE262: =IF(U262="základná",N262,0) -> 0 | BF262: =IF(U262="znížená",N262,0) -> 0 | BG262: =IF(U262="zákl. prenesená",N262,0) -> 0 | BH262: =IF(U262="zníž. prenesená",N262,0) -> 0 | BI262: =IF(U262="nulová",N262,0) -> 0 | BJ262: 2 | BK262: =ROUND(L262*K262,3) -> 0 | BL262: 4 | BM262: 1129630360
... 333 more rows
